bitfinex/quotes_SOLUSD_20230116
["timestamp","ask_amount","ask_price","bid_price","bid_amount"]
[1673904528578,20.0,23.399,23.373,21.46196354]
[1673904528789,49.08,23.398,23.363,32.08]
[1673904528984,49.08,23.398,23.37,21.46196354]
[1673904529527,49.08,23.398,23.363,31.65]
[1673904529528,32.08,23.398,23.363,31.65]
[1673904529726,32.08,23.398,23.371,20.0]
[1673904529961,32.08,23.398,23.372,20.0]
[1673904530157,32.08,23.398,23.372,41.46196354]
[1673904530369,2.52025515,23.397,23.38,20.63]
[1673904530583,2.52025515,23.397,23.382,20.0]
[1673904530808,2.52025515,23.397,23.383,20.0]
[1673904531024,2.52025515,23.397,23.383,58.46196354]
[1673904531237,2.52025515,23.397,23.384,21.46196354]
[1673904531440,2.52025515,23.397,23.385,17.0]
[1673904531633,2.52025515,23.397,23.386,20.0]
[1673904532283,2.52025515,23.397,23.385,20.0]
[1673904532487,2.52025515,23.397,23.374,20.0]
[1673904532488,2.52025515,23.397,23.381,20.0]
[1673904532701,2.52025515,23.397,23.382,17.0]
[1673904532903,2.52025515,23.397,23.383,20.0]
[1673904533111,2.52025515,23.397,23.384,17.0]
[1673904533319,2.52025515,23.397,23.385,20.0]
[1673904533533,590.4,23.423,23.385,20.0]
[1673904533534,32.06,23.411,23.39,20.73]
[1673904533738,52.05,23.416,23.391,40.0]
[1673904533952,32.06,23.414,23.391,20.0]
[1673904534276,20.0,23.413,23.392,38.46196354]
[1673904534590,20.0,23.413,23.394,20.0]
[1673904534800,20.0,23.413,23.395,37.0]
[1673904535009,20.0,23.413,23.395,58.46196354]
[1673904535439,32.05,23.422,23.4,20.73]
[1673904535631,32.04,23.425,23.401,17.0]
[1673904535839,52.03,23.431,23.402,40.0]
[1673904536175,52.03,23.431,23.41,20.66]
[1673904536486,20.0,23.431,23.411,17.0]
[1673904536689,32.03,23.43,23.405,21.46196354]
[1673904536892,32.03,23.43,23.408,38.76422848]
[1673904537096,32.03,23.43,23.406,37.0]
[1673904537518,20.0,23.429,23.407,42.92392708]
[1673904537754,32.04,23.428,23.408,17.0]
[1673904538062,32.04,23.428,23.409,21.46196354]
[1673904538259,20.0,23.431,23.41,20.0]
[1673904538470,32.03,23.43,23.41,20.0]
[1673904538674,20.0,23.429,23.41,20.0]
[1673904538889,20.0,23.429,23.411,17.0]
[1673904539106,20.0,23.429,23.412,20.0]
[1673904539315,20.0,23.429,23.413,17.0]
[1673904539634,20.0,23.429,23.403,9.461]
[1673904539843,20.0,23.429,23.377,71.57186953]
[1673904539844,32.04,23.428,23.394,9.254]
[1673904540057,20.0,23.427,23.396,21.46196354]
[1673904540270,32.04,23.426,23.396,21.46196354]
[1673904540581,20.0,23.425,23.396,21.46196354]
[1673904540776,49.04,23.424,23.396,21.46196354]
[1673904540989,49.04,23.424,23.39,20.63]
[1673904541211,115.4853,23.423,23.393,21.46196354]
[1673904541402,49.05,23.422,23.393,21.46196354]
[1673904541609,20.0,23.421,23.393,21.46196354]
[1673904541843,49.05,23.42,23.393,21.46196354]
[1673904542056,49.05,23.42,23.388,114.7038]
[1673904542267,20.0,23.419,23.391,21.46196354]
[1673904542583,20.0,23.417,23.392,20.0]
[1673904542780,32.05,23.416,23.392,20.0]
[1673904542990,32.05,23.416,23.392,41.46196354]
[1673904543190,32.05,23.416,23.392,21.46196354]
[1673904543521,37.0,23.415,23.388,114.7038]
[1673904543721,32.06,23.414,23.389,21.46196354]
[1673904543923,17.0,23.413,23.389,21.46196354]
[1673904544133,32.06,23.412,23.375,8.327]
[1673904544344,17.0,23.411,23.377,21.46196354]
[1673904544575,20.0,23.409,23.377,21.46196354]
[1673904544765,49.06,23.408,23.377,21.46196354]
[1673904544971,20.0,23.407,23.378,20.0]
[1673904545189,49.07,23.406,23.377,21.46196354]
[1673904545503,20.0,23.405,23.379,21.46196354]
[1673904545712,52.07,23.404,23.374,38.76422848]
[1673904545922,17.0,23.403,23.376,21.46196354]
[1673904546239,32.07,23.402,23.365,124.8725]
[1673904546563,20.0,23.4,23.371,41.46196354]
[1673904546769,32.08,23.399,23.371,41.46196354]
[1673904547091,20.0,23.398,23.372,21.46196354]
[1673904547405,32.08,23.397,23.373,17.0]
[1673904547623,32.07,23.403,23.374,6.136]
[1673904547810,32.07,23.406,23.38,20.59]
[1673904548444,20.0,23.405,23.38,20.59]
[1673904548651,32.07,23.404,23.381,41.46196354]
[1673904549084,20.0,23.403,23.381,41.46196354]
[1673904549301,32.07,23.402,23.381,41.46196354]
[1673904549509,20.0,23.401,23.374,118.2784]
[1673904549833,49.08,23.4,23.37,21.46196354]
[1673904550439,21.46196354,23.399,23.362,5.115]
[1673904550662,69.08,23.398,23.366,21.46196354]
[1673904551081,20.0,23.397,23.366,21.46196354]
[1673904551399,20.0,23.415,23.381,20.0]
[1673904551615,20.0,23.415,23.382,4.71]
[1673904551798,20.0,23.415,23.382,43.17196354]
[1673904552013,32.06,23.414,23.383,21.46196354]
[1673904552240,20.0,23.413,23.384,37.0]
[1673904552450,32.05,23.418,23.385,5.503]
[1673904552769,32.05,23.418,23.39,20.73]
[1673904553079,32.05,23.418,23.391,41.46196354]
[1673904553276,20.0,23.419,23.392,17.0]
[1673904553489,20.0,23.419,23.393,20.0]
[1673904553691,32.05,23.418,23.394,17.0]
[1673904553911,32.05,23.418,23.393,41.46196354]
[1673904554124,32.05,23.418,23.386,7.31]
[1673904554125,53.51196354,23.418,23.382,7.503]
[1673904554451,20.0,23.416,23.388,21.46196354]
[1673904554641,69.05,23.415,23.388,21.46196354]
[1673904555280,20.0,23.414,23.388,21.46196354]
[1673904555495,49.06,23.413,23.389,17.0]
[1673904555693,20.0,23.412,23.389,17.0]
[1673904555903,32.06,23.411,23.39,21.46196354]
[1673904556129,32.06,23.411,23.391,17.0]
[1673904556318,20.0,23.41,23.391,17.0]
[1673904556535,20.0,23.41,23.391,38.46196354]
[1673904557053,32.06,23.411,23.391,38.46196354]
[1673904557278,32.06,23.411,23.392,40.0]
[1673904557596,32.06,23.413,23.393,38.46196354]
[1673904557811,32.06,23.413,23.394,20.0]
[1673904558019,32.06,23.413,23.395,17.0]
[1673904558230,32.06,23.413,23.396,20.0]
[1673904558440,20.0,23.412,23.396,20.0]
[1673904558843,32.06,23.411,23.392,36.03006536]
[1673904559053,32.06,23.411,23.393,20.0]
[1673904559261,20.0,23.41,23.393,21.46196354]
[1673904559492,20.0,23.41,23.394,41.46196354]
[1673904559807,20.0,23.41,23.395,20.0]
[1673904560017,20.0,23.41,23.395,41.46196354]
[1673904560217,20.0,23.412,23.396,38.46196354]
[1673904560427,20.0,23.414,23.396,38.46196354]
[1673904560756,32.05,23.416,23.4,20.73]
[1673904560948,32.04,23.423,23.401,17.0]
[1673904561157,52.04,23.424,23.402,20.0]
[1673904561373,52.04,23.424,23.403,17.0]
[1673904561582,52.04,23.424,23.404,20.0]
[1673904561791,20.0,23.424,23.405,17.0]
[1673904562124,20.0,23.424,23.406,20.0]
[1673904562313,20.0,23.424,23.407,17.0]
[1673904562523,20.0,23.424,23.408,20.0]
[1673904562750,20.0,23.424,23.409,17.0]
[1673904563164,20.0,23.424,23.409,38.46196354]
[1673904563375,20.0,23.424,23.41,20.0]
[1673904563569,32.04,23.429,23.411,17.0]
[1673904563784,20.0,23.43,23.411,17.0]
[1673904563785,20.0,23.43,23.412,20.0]
[1673904564005,21.73637243,23.455,23.412,20.0]
[1673904564006,32.03,23.433,23.413,17.0]
[1673904564215,20.0,23.436,23.415,20.0]
[1673904564435,32.03,23.435,23.416,37.0]
[1673904564644,32.03,23.435,23.416,58.46196354]
[1673904565384,32.03,23.435,23.416,41.46196354]
[1673904565577,32.03,23.433,23.416,41.46196354]
[1673904566106,32.03,23.433,23.416,20.0]
[1673904566309,20.0,23.432,23.417,17.0]
[1673904566732,20.0,23.432,23.417,38.46196354]
[1673904567259,20.0,23.442,23.419,20.0]
[1673904567260,20.0,23.44,23.419,20.0]
[1673904567471,20.0,23.44,23.42,57.59]
[1673904567796,20.0,23.44,23.42,79.05196354]
[1673904568009,20.0,23.44,23.421,41.46196354]
[1673904568319,20.0,23.44,23.423,20.0]
[1673904568535,20.0,23.44,23.424,37.0]
[1673904568730,20.0,23.446,23.424,62.69796354]
[1673904569058,20.0,23.447,23.43,20.59]
[1673904569372,20.0,23.447,23.425,57.4920289]
[1673904569571,20.0,23.447,23.431,42.92392708]
[1673904569782,20.0,23.447,23.424,20.0]
[1673904569991,32.01,23.446,23.427,21.46196354]
[1673904570323,20.0,23.447,23.427,21.46196354]
[1673904571057,20.0,23.447,23.428,17.0]
[1673904571271,20.0,23.447,23.429,20.0]
[1673904571592,20.0,23.447,23.43,17.0]
[1673904571776,32.01,23.45,23.43,38.46196354]
[1673904571996,32.01,23.45,23.431,41.46196354]
[1673904572325,20.0,23.454,23.433,20.0]
[1673904572517,32.0,23.453,23.434,37.0]
[1673904572731,20.0,23.452,23.434,58.46196354]
[1673904573050,20.0,23.452,23.435,21.46196354]
[1673904573458,32.01,23.451,23.426,119.6438]
[1673904573676,32.01,23.451,23.435,21.46196354]
[1673904573981,20.0,23.454,23.435,21.46196354]
[1673904574213,20.0,23.454,23.436,20.0]
[1673904574404,32.0,23.455,23.436,20.0]
[1673904574616,20.0,23.459,23.437,21.46196354]
[1673904574843,32.0,23.458,23.438,17.0]
[1673904575243,20.0,23.457,23.439,21.46196354]
[1673904575464,20.0,23.457,23.44,17.0]
[1673904575674,20.0,23.457,23.431,22.169]
[1673904575983,32.0,23.456,23.439,21.46196354]
[1673904576201,20.0,23.455,23.439,21.46196354]
[1673904576410,32.0,23.454,23.439,21.46196354]
[1673904576621,30.34661459,23.438,23.422,1.961]
[1673904576831,30.34661459,23.438,23.431,21.46196354]
[1673904577995,30.34661459,23.438,23.432,17.0]
[1673904578211,30.34661459,23.438,23.433,20.0]
[1673904578396,20.0,23.451,23.434,17.0]
[1673904578610,20.0,23.453,23.435,40.0]
[1673904578811,20.0,23.453,23.435,20.0]
[1673904579021,20.0,23.451,23.435,41.46196354]
[1673904579243,20.0,23.451,23.435,20.0]
[1673904579456,32.01,23.45,23.432,42.92392708]
[1673904579667,20.0,23.449,23.432,21.46196354]
[1673904579991,49.01,23.448,23.416,25.57196354]
[1673904580187,20.0,23.447,23.419,20.0]
[1673904580390,32.01,23.446,23.423,21.46196354]
[1673904581129,20.0,23.445,23.423,21.46196354]
[1673904581350,32.02,23.444,23.423,21.46196354]
[1673904581571,32.02,23.444,23.419,20.0]
[1673904581780,32.02,23.444,23.42,21.46196354]
[1673904581984,20.0,23.443,23.42,21.46196354]
[1673904582193,20.0,23.443,23.421,20.0]
[1673904582416,32.02,23.442,23.421,20.0]
[1673904582612,32.02,23.442,23.422,21.46196354]
[1673904582830,20.0,23.441,23.423,37.0]
[1673904583144,20.0,23.441,23.424,21.46196354]
[1673904583344,20.0,23.441,23.425,37.0]
[1673904583777,20.0,23.441,23.426,21.46196354]
[1673904584103,20.0,23.441,23.427,20.0]
[1673904584508,20.0,23.441,23.421,20.0]
[1673904585033,20.0,23.439,23.422,21.46196354]
[1673904585231,20.0,23.439,23.423,20.0]
[1673904585861,20.0,23.441,23.425,20.0]
[1673904586082,20.0,23.445,23.426,17.0]
[1673904586400,32.01,23.45,23.43,20.59]
[1673904586624,32.01,23.45,23.427,57.4920289]
[1673904586841,32.01,23.45,23.425,20.0]
[1673904586842,32.01,23.447,23.431,21.46196354]
[1673904587018,20.0,23.446,23.431,21.46196354]
[1673904587228,32.01,23.445,23.431,21.46196354]
[1673904587674,32.01,23.445,23.422,20.0]
[1673904587865,32.01,23.445,23.424,20.0]
[1673904588079,20.0,23.446,23.425,37.0]
[1673904588280,20.0,23.446,23.425,58.46196354]
[1673904588495,20.0,23.446,23.426,21.46196354]
[1673904588706,32.01,23.445,23.427,37.0]
[1673904588922,20.0,23.446,23.427,37.0]
[1673904589145,20.0,23.446,23.428,21.46196354]
[1673904589335,20.0,23.446,23.429,17.0]
[1673904589765,20.0,23.446,23.43,21.46196354]
[1673904589977,20.0,23.446,23.431,17.0]
[1673904590299,20.0,23.446,23.432,21.46196354]
[1673904590505,20.0,23.446,23.433,17.0]
[1673904590697,20.0,23.448,23.433,17.0]
[1673904590904,20.0,23.449,23.434,21.46196354]
[1673904591118,20.0,23.449,23.435,17.0]
[1673904591544,20.0,23.449,23.435,38.46196354]
[1673904591771,20.0,23.449,23.435,21.46196354]
[1673904591960,20.0,23.449,23.427,20.0]
[1673904592174,20.0,23.449,23.424,20.0]
[1673904592175,20.0,23.449,23.429,21.46196354]
[1673904592384,32.01,23.448,23.429,21.46196354]
[1673904592599,20.0,23.447,23.429,21.46196354]
[1673904593145,20.0,23.445,23.429,21.46196354]
[1673904593335,20.0,23.445,23.43,17.0]
[1673904593756,20.0,23.445,23.431,21.46196354]
[1673904593967,20.0,23.445,23.432,17.0]
[1673904594396,52.01,23.449,23.433,21.46196354]
[1673904594605,20.0,23.449,23.434,17.0]
[1673904595124,20.0,23.449,23.435,21.46196354]
[1673904595339,20.0,23.449,23.436,37.0]
[1673904595555,20.0,23.45,23.436,37.0]
[1673904595762,20.0,23.45,23.437,21.46196354]
[1673904595980,20.0,23.45,23.438,37.0]
[1673904596377,20.0,23.45,23.439,21.46196354]
[1673904596718,20.0,23.45,23.44,17.0]
[1673904597126,20.0,23.45,23.441,21.46196354]
[1673904597548,20.0,23.45,23.44,17.0]
[1673904597769,20.0,23.45,23.44,21.46196354]
[1673904597958,20.0,23.45,23.438,20.0]
[1673904598169,20.0,23.45,23.433,20.0]
[1673904598509,20.0,23.45,23.437,21.46196354]
[1673904598705,20.0,23.45,23.438,20.0]
[1673904599866,20.0,23.45,23.438,41.46196354]
[1673904600488,20.0,23.455,23.439,17.0]
[1673904600899,20.0,23.455,23.44,21.46196354]
[1673904601115,20.0,23.455,23.441,17.0]
[1673904601539,20.0,23.455,23.442,42.92392708]
[1673904601747,20.0,23.455,23.438,20.0]
[1673904601965,20.0,23.455,23.439,38.46196354]
[1673904602175,51.99,23.461,23.44,20.0]
[1673904602496,20.0,23.461,23.441,17.0]
[1673904602701,20.0,23.461,23.442,20.0]
[1673904602897,20.0,23.461,23.443,17.0]
[1673904603104,20.0,23.461,23.444,20.0]
[1673904603314,20.0,23.461,23.445,17.0]
[1673904603543,20.0,23.464,23.446,20.0]
[1673904603746,20.0,23.464,23.447,17.0]
[1673904603962,20.0,23.464,23.448,20.0]
[1673904604367,20.0,23.464,23.449,17.0]
[1673904604577,20.0,23.464,23.449,38.46196354]
[1673904604787,20.0,23.464,23.45,21.46196354]
[1673904605008,20.0,23.464,23.451,17.0]
[1673904605430,20.0,23.464,23.452,21.46196354]
[1673904605645,20.0,23.464,23.451,38.46196354]
[1673904607110,20.0,23.464,23.451,21.46196354]
[1673904607550,20.0,23.464,23.448,20.0]
[1673904607741,20.0,23.464,23.449,21.46196354]
[1673904607957,31.99,23.462,23.449,21.46196354]
[1673904608163,31.99,23.462,23.43,20.0]
[1673904608375,48.99,23.462,23.437,21.46196354]
[1673904609013,20.0,23.461,23.43,20.0]
[1673904609229,48.99,23.46,23.431,21.46196354]
[1673904609423,20.0,23.459,23.431,21.46196354]
[1673904609765,20.0,23.459,23.422,56.03006536]
[1673904609766,20.0,23.457,23.422,41.46196354]
[1673904609976,32.0,23.456,23.422,41.46196354]
[1673904610155,37.0,23.455,23.422,41.46196354]
[1673904610371,32.0,23.454,23.422,77.4920289]
[1673904610578,37.0,23.453,23.422,77.4920289]
[1673904610793,20.0,23.451,23.422,77.4920289]
[1673904611012,32.01,23.45,23.422,77.4920289]
[1673904611224,111.8276,23.452,23.422,77.4920289]
[1673904611427,111.8276,23.452,23.43,20.73]
[1673904611628,111.8276,23.452,23.431,17.0]
[1673904611842,111.8276,23.452,23.431,38.46196354]
[1673904612067,111.8276,23.452,23.432,41.46196354]
[1673904612278,111.8276,23.452,23.434,20.0]
[1673904612498,32.0,23.456,23.435,20.0]
[1673904612697,20.0,23.46,23.435,74.4920289]
[1673904612890,51.99,23.459,23.436,21.46196354]
[1673904613319,51.99,23.459,23.42,20.55]
[1673904613529,51.99,23.459,23.43,21.46196354]
[1673904613750,51.99,23.459,23.42,20.55]
[1673904613751,20.0,23.457,23.42,20.55]
[1673904614050,52.0,23.456,23.422,21.46196354]
[1673904614384,128.2,23.453,23.414,109.7533]
[1673904614600,20.73,23.45,23.417,21.46196354]
[1673904614789,20.0,23.448,23.417,21.46196354]
[1673904615004,52.01,23.447,23.417,21.46196354]
[1673904615220,17.0,23.446,23.417,21.46196354]
[1673904615438,52.01,23.445,23.417,21.46196354]
[1673904615629,20.0,23.443,23.417,21.46196354]
[1673904615846,49.02,23.442,23.417,21.46196354]
[1673904616056,20.0,23.441,23.417,21.46196354]
[1673904616268,49.02,23.44,23.417,21.46196354]
[1673904616783,49.02,23.44,23.418,40.0]
[1673904617199,49.02,23.44,23.419,99.43043529]
[1673904617411,20.0,23.439,23.419,77.96847175]
[1673904617625,20.0,23.437,23.4,137.1267]
[1673904617849,69.03,23.436,23.4,137.1267]
[1673904618168,20.0,23.434,23.403,20.0]
[1673904618484,69.03,23.433,23.404,68.63082536]
[1673904618797,69.03,23.433,23.405,41.46196354]
[1673904618798,23.04,23.43,23.405,41.46196354]
[1673904618997,20.0,23.428,23.405,41.46196354]
[1673904619206,49.04,23.427,23.406,21.46196354]
[1673904619410,49.04,23.427,23.407,20.0]
[1673904619625,20.0,23.426,23.407,20.0]
[1673904619832,49.04,23.425,23.408,21.46196354]
[1673904620057,49.04,23.425,23.409,20.0]
[1673904620478,49.04,23.425,23.41,21.46196354]
[1673904620685,32.04,23.425,23.41,21.46196354]
[1673904620897,17.0,23.424,23.409,20.0]
[1673904621100,17.0,23.424,23.408,21.46196354]
[1673904621317,32.04,23.423,23.409,20.0]
[1673904621515,17.0,23.422,23.409,20.0]
[1673904621840,52.05,23.421,23.407,21.46196354]
[1673904622052,52.05,23.421,23.408,20.0]
[1673904622264,17.0,23.42,23.395,21.46196354]
[1673904622478,17.0,23.42,23.401,20.0]
[1673904622674,17.0,23.42,23.401,40.0]
[1673904622887,20.0,23.421,23.402,41.46196354]
[1673904623096,17.0,23.42,23.402,41.46196354]
[1673904623309,32.04,23.425,23.403,21.46196354]
[1673904623525,32.03,23.433,23.404,20.0]
[1673904623742,32.03,23.433,23.405,20.0]
[1673904623930,32.03,23.436,23.405,126.25976863]
[1673904624144,32.03,23.436,23.406,105.63082536]
[1673904624371,32.03,23.433,23.406,105.63082536]
[1673904624584,32.03,23.433,23.408,20.0]
[1673904624785,52.03,23.434,23.409,37.0]
[1673904624993,52.03,23.434,23.41,20.0]
[1673904625205,52.03,23.434,23.411,37.0]
[1673904625420,20.0,23.434,23.411,37.0]
[1673904625621,20.0,23.434,23.412,41.46196354]
[1673904625832,32.03,23.436,23.413,37.0]
[1673904626048,136.541,23.439,23.413,105.63082536]
[1673904626254,136.541,23.439,23.414,47.16886182]
[1673904626473,136.541,23.439,23.415,37.0]
[1673904626789,136.541,23.439,23.416,20.0]
[1673904627007,136.541,23.439,23.417,37.0]
[1673904627316,136.541,23.439,23.417,58.46196354]
[1673904627531,116.541,23.439,23.418,68.63082536]
[1673904627722,116.541,23.439,23.419,20.0]
[1673904627929,32.02,23.438,23.417,20.0]
[1673904628365,32.02,23.438,23.419,21.46196354]
[1673904628569,20.0,23.437,23.417,20.0]
[1673904628794,49.03,23.436,23.411,20.0]
[1673904629202,49.03,23.436,23.411,41.46196354]
[1673904629418,20.0,23.435,23.411,41.46196354]
[1673904629625,20.0,23.433,23.412,21.46196354]
[1673904629839,17.0,23.432,23.413,37.0]
[1673904630043,20.0,23.433,23.413,37.0]
[1673904630264,20.0,23.433,23.414,21.46196354]
[1673904630474,20.0,23.433,23.415,37.0]
[1673904630786,20.0,23.433,23.416,21.46196354]
[1673904631001,20.0,23.438,23.417,37.0]
[1673904631002,32.03,23.436,23.417,37.0]
[1673904631213,52.02,23.438,23.417,37.0]
[1673904631400,52.02,23.438,23.418,21.46196354]
[1673904631610,20.0,23.438,23.42,20.0]
[1673904631831,32.02,23.44,23.421,17.0]
[1673904632045,141.7298,23.442,23.421,38.46196354]
[1673904632258,141.7298,23.442,23.422,21.46196354]
[1673904632454,141.7298,23.442,23.423,17.0]
[1673904632664,141.7298,23.442,23.424,20.0]
[1673904632868,20.0,23.449,23.43,23.05]
[1673904633082,117.6355,23.456,23.431,17.0]
[1673904633298,117.6355,23.456,23.432,20.0]
[1673904633509,20.0,23.454,23.434,20.0]
[1673904633715,20.0,23.454,23.435,20.0]
[1673904633935,20.0,23.454,23.436,17.0]
[1673904634139,20.0,23.454,23.436,21.46196354]
[1673904634346,32.0,23.453,23.437,20.0]
[1673904634563,20.0,23.452,23.435,20.0]
[1673904634976,20.0,23.452,23.434,20.0]
[1673904635186,20.0,23.452,23.436,21.46196354]
[1673904635397,20.0,23.452,23.437,37.0]
[1673904635940,20.0,23.452,23.438,21.46196354]
[1673904636156,20.0,23.454,23.439,37.0]
[1673904636342,20.0,23.454,23.44,24.8]
[1673904636552,20.0,23.454,23.44,21.46196354]
[1673904636793,20.0,23.454,23.441,38.46196354]
[1673904637091,20.0,23.454,23.441,17.0]
[1673904637311,20.0,23.454,23.442,21.46196354]
[1673904638353,17.0,23.453,23.442,21.46196354]
[1673904638567,20.0,23.452,23.43,24.81]
[1673904638883,49.01,23.451,23.437,21.46196354]
[1673904639099,49.01,23.451,23.427,112.7757]
[1673904639404,20.0,23.45,23.431,21.46196354]
[1673904639600,32.01,23.449,23.431,21.46196354]
[1673904640233,20.0,23.448,23.431,21.46196354]
[1673904640439,20.0,23.448,23.432,17.0]
[1673904640859,20.0,23.448,23.433,21.46196354]
[1673904641081,20.0,23.448,23.434,17.0]
[1673904641614,20.0,23.448,23.435,21.46196354]
[1673904641833,20.0,23.448,23.436,17.0]
[1673904642251,20.0,23.448,23.436,38.46196354]
[1673904642649,20.0,23.45,23.436,38.46196354]
[1673904643505,20.0,23.45,23.436,21.46196354]
[1673904645480,51.99,23.459,23.44,24.81]
[1673904645818,51.99,23.459,23.441,38.46196354]
[1673904646027,20.0,23.459,23.441,38.46196354]
[1673904646220,20.0,23.459,23.442,21.46196354]
[1673904646429,20.0,23.459,23.443,17.0]
[1673904646890,20.0,23.459,23.444,21.46196354]
[1673904648855,20.0,23.459,23.445,17.0]
[1673904649266,20.0,23.459,23.446,21.46196354]
[1673904649475,20.0,23.459,23.447,17.0]
[1673904649926,20.0,23.459,23.448,21.46196354]
[1673904650122,20.0,23.459,23.449,17.0]
[1673904651701,394.3,23.465,23.45,46.27196354]
[1673904651912,31.98,23.468,23.451,17.0]
[1673904652127,114.4916,23.469,23.451,38.46196354]
[1673904652320,19.5,23.464,23.452,21.46196354]
[1673904652517,19.5,23.464,23.453,17.0]
[1673904652960,19.5,23.464,23.454,10.51206354]
[1673904653170,15.77221903,23.452,23.451,34.4117986]
[1673904653370,64.77221903,23.452,23.429,114.1445]
[1673904653572,49.01,23.451,23.43,24.81]
[1673904653781,66.42,23.451,23.43,24.81]
[1673904653999,41.81,23.45,23.428,20.0]
[1673904654215,52.01,23.449,23.421,20.0]
[1673904654424,17.0,23.448,23.42,24.7]
[1673904654638,32.01,23.447,23.42,24.7]
[1673904654853,17.0,23.446,23.42,24.7]
[1673904655051,32.01,23.445,23.42,24.7]
[1673904655375,19.5,23.443,23.421,20.0]
[1673904655565,51.52,23.443,23.421,20.0]
[1673904655781,19.5,23.443,23.422,20.0]
[1673904656212,32.01,23.447,23.43,24.81]
[1673904656430,32.01,23.45,23.431,17.0]
[1673904656623,34.41,23.451,23.432,20.0]
[1673904656828,34.41,23.451,23.431,36.78906382]
[1673904657042,32.01,23.45,23.42,24.7]
[1673904657262,20.0,23.449,23.42,24.7]
[1673904657493,20.0,23.447,23.422,36.78906382]
[1673904657693,32.01,23.446,23.422,36.78906382]
[1673904657906,20.0,23.444,23.423,20.0]
[1673904658299,20.0,23.444,23.424,36.78906382]
[1673904658530,20.0,23.444,23.425,20.0]
[1673904658743,20.0,23.447,23.424,20.0]
[1673904658939,20.0,23.447,23.425,20.0]
[1673904659155,20.0,23.447,23.426,36.78906382]
[1673904659366,17.0,23.446,23.427,20.0]
[1673904659685,20.0,23.445,23.421,112.0806]
[1673904659877,20.0,23.443,23.421,112.0806]
[1673904660093,32.02,23.442,23.421,112.0806]
[1673904660305,24.81,23.44,23.412,36.78906382]
[1673904660522,32.02,23.439,23.413,230.5041]
[1673904660726,49.02,23.439,23.413,230.5041]
[1673904661151,20.0,23.438,23.413,230.5041]
[1673904661360,49.02,23.437,23.414,20.0]
[1673904661568,49.02,23.437,23.413,230.5041]
[1673904661790,49.02,23.437,23.414,20.0]
[1673904662313,20.0,23.438,23.415,17.0]
[1673904662533,20.0,23.438,23.404,83.10742836]
[1673904662730,20.0,23.441,23.413,21.46196354]
[1673904662937,20.0,23.441,23.42,24.81]